bitfinex/quotes_ETHUSD_20260202
["timestamp","ask_amount","ask_price","bid_price","bid_amount"]
[1770015670775,0.0011,2228.2,2226.7,0.942]
[1770015670971,0.0011,2228.2,2226.7,15.442]
[1770015671172,15.17098294,2227.7,2225.9,17.10147985]
[1770015671406,15.17098294,2227.7,2226.0,14.93206812]
[1770015671703,1.51709829,2227.6,2226.1,14.5]
[1770015672473,1.51709829,2227.6,2226.2,13.98906812]
[1770015672685,0.1024,2228.1,2226.2,13.98906812]
[1770015672883,13.26109282,2228.1,2226.0,0.943]
[1770015673103,0.1024,2228.0,2226.1,28.48906812]
[1770015673405,0.1024,2228.0,2226.2,13.98906812]
[1770015673615,0.1024,2228.1,2226.2,13.98906812]
[1770015673773,1.52744829,2228.1,2226.4,13.98906812]
[1770015673978,1.52744829,2228.1,2226.6,13.98906812]
[1770015674173,0.942,2229.0,2226.5,14.7335703]
[1770015674174,0.0011,2229.1,2227.2,13.98906812]
[1770015674377,0.0011,2229.1,2227.5,14.22263842]
[1770015674904,15.17098294,2227.7,2225.9,5.48493778]
[1770015675078,0.1024,2227.1,2225.5,13.98906812]
[1770015675275,1.51709829,2227.6,2225.5,13.98906812]
[1770015675480,0.1024,2227.7,2225.7,13.98906812]
[1770015675778,0.1024,2227.7,2225.9,13.98906812]
[1770015676006,0.1024,2227.7,2225.9,14.93106812]
[1770015676275,0.1024,2227.2,2225.3,14.93106812]
[1770015676477,15.18438291,2226.9,2225.3,14.93106812]
[1770015676807,1.51843829,2226.8,2225.3,14.93106812]
[1770015677006,0.1024,2226.7,2225.3,0.942]
[1770015677207,1.06890179,2226.6,2225.3,0.942]
[1770015677413,15.18438291,2226.4,2224.8,13.98906812]
[1770015677887,0.1024,2226.6,2224.8,13.98906812]
[1770015678094,0.1024,2227.2,2225.0,13.98906812]
[1770015678611,15.18438291,2227.3,2225.0,13.98906812]
[1770015678777,15.18438291,2227.3,2225.2,13.98906812]
[1770015679384,0.0011,2227.4,2225.2,13.98906812]
[1770015679784,0.0011,2227.4,2225.4,13.98906812]
[1770015680212,0.1024,2227.2,2225.4,13.98906812]
[1770015680625,0.1024,2227.2,2224.5,0.001]
[1770015680626,0.1024,2226.7,2224.9,13.98906812]
[1770015680789,0.1024,2226.7,2224.9,14.93106812]
[1770015681587,0.1024,2226.2,2224.5,0.001]
[1770015681803,16.12638291,2226.8,2224.6,14.93106812]
[1770015682088,2.79824486,2226.7,2224.6,14.93106812]
[1770015682283,1.83483141,2226.7,2224.6,14.93106812]
[1770015682485,1.73243141,2226.7,2224.6,14.93106812]
[1770015682718,15.18438291,2227.3,2224.6,14.93106812]
[1770015683019,0.1024,2227.2,2224.6,14.93106812]
[1770015684888,0.1024,2227.2,2225.4,13.98906812]
[1770015685108,0.1024,2227.2,2225.6,13.98906812]
[1770015686222,0.0011,2227.4,2225.8,13.98906812]
[1770015686385,0.0011,2227.4,2226.2,13.98906812]
[1770015686590,0.0011,2227.6,2226.4,13.98906812]
[1770015687220,0.0011,2227.6,2226.3,0.942]
[1770015687926,0.0011,2227.6,2226.3,14.93106812]
[1770015689632,0.0011,2227.4,2226.3,14.93106812]
[1770015689857,0.0011,2227.4,2226.4,13.98906812]
[1770015690520,0.0011,2227.4,2226.3,0.942]
[1770015690731,0.0011,2227.4,2226.3,14.93106812]
[1770015693722,0.0011,2227.6,2226.4,13.98906812]
[1770015695735,0.0011,2228.5,2226.5,14.22263842]
[1770015695929,0.0011,2228.5,2226.8,13.98906812]
[1770015696160,0.0011,2228.5,2227.0,13.98906812]
[1770015696374,0.0011,2228.5,2227.2,13.98906812]
[1770015697575,0.0011,2228.5,2225.9,5.58733778]
[1770015697576,0.1024,2228.0,2226.4,14.93106812]
[1770015697730,0.1024,2228.0,2226.4,13.98906812]
[1770015697932,1.52867829,2228.0,2226.5,13.79430248]
[1770015698135,1.52867829,2228.0,2226.6,0.942]
[1770015700383,1.52867829,2228.0,2226.6,13.79430248]
[1770015700538,0.1035,2228.5,2226.6,13.79430248]
[1770015701094,0.1024,2228.4,2226.6,12.85230248]
[1770015701382,0.1024,2228.0,2226.4,0.942]
[1770015701583,0.1024,2228.0,2226.5,0.942]
[1770015702082,0.1024,2228.0,2226.6,0.001]
[1770015702247,0.0011,2227.8,2226.6,0.001]
[1770015702452,0.0011,2227.8,2226.6,12.85330248]
[1770015704036,0.0011,2227.8,2226.6,0.001]
[1770015704781,0.0011,2227.8,2226.6,12.85330248]
[1770015705442,0.0011,2228.0,2227.0,12.85230248]
[1770015705644,0.0011,2228.5,2227.4,12.85230248]
[1770015705973,0.0011,2229.3,2228.2,12.85230248]
[1770015706158,0.0011,2229.3,2228.3,0.942]
[1770015706566,28.90896815,2230.4,2227.9,0.2335703]
[1770015706567,28.90896815,2230.4,2228.5,12.85230248]
[1770015706886,28.90896815,2230.9,2228.8,12.85230248]
[1770015707180,4.06637048,2230.8,2228.8,12.85230248]
[1770015707362,3.10488993,2230.8,2228.8,12.85230248]
[1770015707564,15.18438291,2230.6,2228.8,12.85230248]
[1770015707955,15.18438291,2231.2,2229.1,13.25780082]
[1770015708266,15.18438291,2231.2,2229.3,13.25780082]
[1770015708448,0.64348963,2231.6,2229.5,13.25780082]
[1770015708847,0.1024,2231.5,2229.5,13.25780082]
[1770015709173,15.18438291,2231.2,2229.5,13.25780082]
[1770015709372,15.18438291,2230.7,2229.3,0.942]
[1770015709574,13.61688298,2231.1,2229.3,0.942]
[1770015709779,0.1024,2230.5,2229.0,13.25780082]
[1770015709942,0.1024,2230.5,2228.9,0.942]
[1770015710695,0.1024,2230.0,2228.0,13.25780082]
[1770015710845,1.63107829,2230.0,2228.4,0.942]
[1770015711478,15.14556127,2230.0,2228.4,0.942]
[1770015711840,1.63107829,2230.0,2228.4,0.942]
[1770015712469,1.52867829,2230.0,2228.4,14.19980082]
[1770015713346,1.43259555,2231.4,2229.0,13.25780082]
[1770015713557,1.43259555,2231.4,2229.6,13.25780082]
[1770015713558,0.2346644,2231.4,2229.6,13.25780082]
[1770015713764,17.32780381,2231.5,2229.7,0.941]
[1770015714552,0.1024,2231.4,2229.7,0.941]
[1770015715883,17.32780381,2231.5,2229.7,14.19880082]
[1770015716183,0.0011,2231.2,2230.0,13.25780082]
[1770015717246,0.0011,2231.2,2230.1,0.941]
[1770015718960,0.0011,2231.2,2230.2,13.25780082]
[1770015719874,0.0011,2231.2,2230.1,0.941]
[1770015720274,0.0011,2231.2,2229.7,13.25780082]
[1770015720275,0.0011,2231.2,2229.9,0.941]
[1770015720991,0.0011,2231.2,2229.9,14.19880082]
[1770015721212,0.0011,2231.2,2230.0,13.25780082]
[1770015721398,0.0011,2231.2,2229.9,0.941]
[1770015721583,0.1024,2231.0,2229.1,0.001]
[1770015721790,15.18438291,2230.5,2229.1,0.001]
[1770015721992,0.1024,2230.4,2229.1,0.001]
[1770015722183,1.63107829,2230.4,2229.1,0.001]
[1770015722912,0.1024,2230.7,2229.1,0.001]
[1770015723119,13.61688298,2230.7,2229.1,0.001]
[1770015723296,0.1024,2230.7,2229.1,0.001]
[1770015724084,15.18438291,2230.8,2229.1,13.25880082]
[1770015724508,0.1024,2230.7,2229.1,0.001]
[1770015724709,1.52867829,2230.7,2229.1,13.25880082]
[1770015725018,13.51558298,2231.2,2229.1,13.25880082]
[1770015725019,0.0011,2231.2,2229.5,13.25780082]
[1770015725220,0.0011,2231.2,2230.1,13.25780082]
[1770015725518,0.0011,2231.2,2230.2,14.19880082]
[1770015725815,0.0011,2231.2,2230.2,0.941]
[1770015726183,0.0011,2231.2,2230.2,14.19880082]
[1770015727395,0.0011,2231.4,2230.3,13.49137112]
[1770015728004,0.0011,2232.3,2230.3,13.49137112]
[1770015728316,0.0011,2232.3,2230.5,13.17080181]
[1770015728723,0.45876798,2232.8,2230.8,12.93723151]
[1770015729033,0.23440445,2233.8,2231.8,12.93723151]
[1770015729184,0.1024,2233.6,2231.9,0.941]
[1770015729387,28.71100238,2234.2,2232.1,12.93723151]
[1770015729589,15.41872256,2234.7,2232.4,12.93723151]
[1770015729819,15.18438291,2234.2,2232.0,0.2335703]
[1770015729989,0.1024,2234.1,2232.0,12.93723151]
[1770015730306,1.63107829,2234.1,2232.1,12.93723151]
[1770015730505,15.18438291,2233.7,2232.0,0.941]
[1770015730719,0.0011,2232.3,2232.1,0.941]
[1770015731015,0.1024,2233.6,2232.1,0.941]
[1770015731406,15.18438291,2233.7,2232.1,13.87823151]
[1770015731722,1.51843829,2233.6,2232.1,0.941]
[1770015732447,1.51843829,2233.6,2232.1,13.87823151]
[1770015732991,1.52867829,2234.1,2232.2,13.17080181]
[1770015733188,28.71100238,2234.7,2232.2,13.17080181]
[1770015733505,15.18438291,2234.7,2232.2,13.17080181]
[1770015734115,0.1024,2234.6,2232.2,12.93723151]
[1770015734624,15.18438291,2234.7,2231.7,12.93723151]
[1770015734625,15.18438291,2233.7,2231.7,12.93723151]
[1770015734797,13.62901947,2234.1,2231.9,13.87723151]
[1770015734991,15.18438291,2233.7,2231.9,13.87723151]
[1770015735187,2.88134024,2234.0,2231.9,13.87723151]
[1770015735507,2.88134024,2234.0,2232.0,13.17080181]
[1770015735702,15.18438291,2234.4,2232.0,13.17080181]
[1770015735889,0.69784186,2234.3,2232.0,13.17080181]
[1770015736087,0.1024,2234.3,2232.0,13.17080181]
[1770015736498,28.60581213,2234.6,2232.0,13.17080181]
[1770015736805,0.1024,2234.5,2232.0,13.17080181]
[1770015736996,0.1024,2234.5,2232.2,12.93723151]
[1770015736997,15.07919266,2234.1,2232.2,12.93723151]
[1770015737201,0.1024,2233.9,2232.3,0.94]
[1770015737440,0.1024,2234.4,2232.3,13.87723151]
[1770015737841,0.1024,2234.4,2232.4,13.17080181]
[1770015737999,2.91737858,2234.5,2232.4,13.17080181]
[1770015738197,0.46557362,2234.7,2232.7,0.2335703]
[1770015738198,0.1024,2234.6,2232.7,0.2335703]
[1770015738514,0.1024,2234.6,2232.7,13.17080181]
[1770015739029,0.1024,2234.6,2232.7,12.93723151]
[1770015739197,15.07919266,2234.5,2232.7,12.93723151]
[1770015739399,0.46557362,2234.7,2232.8,13.17080181]
[1770015739623,0.46557362,2234.7,2232.3,0.94]
[1770015739624,0.46557362,2234.7,2233.1,12.93723151]
[1770015741439,0.46557362,2234.7,2233.2,0.94]
[1770015742040,0.1024,2234.6,2232.1,12.93723151]
[1770015742329,0.46557362,2234.7,2232.3,12.93723151]
[1770015742516,0.46557362,2234.7,2232.2,0.94]
[1770015742517,0.0011,2234.5,2232.7,12.93723151]
[1770015743094,0.0011,2234.5,2232.8,0.94]
[1770015743296,0.0011,2234.5,2232.2,12.93723151]
[1770015743297,0.1024,2234.1,2232.2,12.93723151]
[1770015743615,13.62901947,2234.1,2232.1,0.94]
[1770015744749,13.62901947,2234.1,2232.1,13.87723151]
[1770015745402,0.1024,2234.1,2232.1,13.87723151]
[1770015745633,1.62055927,2234.1,2232.2,12.93723151]
[1770015745830,15.07919266,2233.7,2231.1,12.93723151]
[1770015746038,15.07919266,2233.8,2231.9,13.87723151]
[1770015746203,0.1024,2233.7,2231.9,13.87723151]
[1770015746404,0.1024,2233.7,2231.9,0.94]
[1770015746604,1.62055927,2233.7,2231.9,0.94]
[1770015746801,15.07919266,2233.3,2231.9,0.94]
[1770015747510,15.07919266,2233.3,2231.4,12.93723151]
[1770015747511,0.1024,2233.2,2231.4,12.93723151]
[1770015747731,0.1024,2233.2,2231.1,13.87723151]
[1770015747931,15.07919266,2232.8,2231.2,0.94]
[1770015748150,0.1024,2232.6,2231.2,0.94]
[1770015748443,0.1024,2232.2,2230.3,0.94]
[1770015748943,13.52661947,2232.2,2229.6,0.001]
[1770015749145,13.52661947,2232.2,2229.4,0.001]
[1770015749146,15.07919266,2230.2,2229.4,0.001]
[1770015749359,15.07919266,2230.2,2227.6,12.93723151]
[1770015749360,1.86790589,2229.4,2227.6,12.93723151]
[1770015749639,15.07919266,2229.2,2227.6,12.93723151]
[1770015749958,1.6259321,2229.1,2227.6,13.87723151]
[1770015750244,0.1024,2229.7,2227.6,13.87723151]
[1770015750607,0.2348044,2230.3,2228.0,12.93823151]
[1770015750608,0.1024,2230.2,2228.0,12.93823151]
[1770015751457,15.07919266,2229.3,2228.0,0.001]
[1770015751623,0.1024,2229.2,2227.7,0.94]
[1770015751826,1.62055927,2229.2,2227.7,0.94]
[1770015752874,1.62055927,2229.2,2226.9,12.93723151]
[1770015753165,1.62055927,2229.2,2227.0,0.94]
[1770015753166,0.1024,2228.7,2227.0,0.94]
[1770015753327,0.1024,2228.2,2226.6,0.001]
[1770015753526,0.1024,2228.2,2226.7,0.94]
[1770015753729,0.1024,2228.2,2226.6,0.001]
[1770015753930,0.1024,2228.2,2226.7,0.94]
[1770015754361,0.1024,2228.4,2226.7,0.94]
[1770015754660,1.62055927,2228.4,2226.7,0.94]
[1770015754865,1.62055927,2228.4,2226.8,0.94]
[1770015755235,1.51815927,2228.4,2226.8,0.94]
[1770015755945,0.1024,2227.9,2226.6,0.001]
[1770015756145,1.62055927,2227.9,2226.6,0.001]
[1770015756841,1.62055927,2227.9,2225.9,0.001]
[1770015756842,28.60581213,2227.4,2225.9,0.001]
[1770015757030,28.60581213,2227.4,2225.4,7.9394565]
[1770015757031,0.1024,2226.8,2225.4,7.9394565]
[1770015757431,0.1024,2226.3,2224.8,0.941]
[1770015757731,1.51815927,2226.3,2224.8,0.941]
[1770015757972,0.1024,2226.5,2224.8,0.941]
[1770015758270,0.1024,2226.5,2224.5,0.001]
[1770015758271,0.1024,2225.8,2224.5,0.001]
[1770015758630,0.2335703,2226.7,2223.0,13.91988001]
[1770015758631,15.07919266,2224.9,2223.0,13.91988001]
[1770015758841,0.1024,2225.3,2223.4,0.942]
[1770015758842,1.50791927,2224.8,2223.4,0.942]
[1770015759154,15.07919266,2225.4,2223.4,13.92088001]
[1770015759356,15.07919266,2225.4,2223.5,14.86088001]
[1770015759684,0.1024,2225.8,2223.6,14.86088001]
[1770015759842,15.07919266,2225.9,2223.6,14.86088001]
[1770015760042,15.07919266,2225.9,2223.8,13.91988001]
[1770015760244,1.50791927,2225.8,2224.1,13.91988001]
[1770015760464,1.50791927,2225.8,2224.3,13.91988001]
[1770015760792,15.18159266,2226.4,2224.3,13.91988001]
[1770015760793,15.07919266,2226.4,2224.3,13.91988001]
[1770015760943,15.55194441,2226.9,2224.7,13.91988001]
[1770015761145,0.1024,2226.8,2224.7,13.91988001]
[1770015761376,15.55194441,2226.9,2224.9,13.91988001]
[1770015761780,0.47275175,2226.9,2225.0,14.86088001]
[1770015761979,0.1024,2226.8,2225.0,13.91988001]
[1770015762164,0.1024,2226.6,2225.1,0.941]
[1770015762373,0.1024,2226.6,2225.2,0.941]
[1770015762682,0.1024,2226.6,2225.3,0.941]
[1770015762887,0.47275175,2226.9,2225.3,14.86088001]
[1770015763065,0.47275175,2226.9,2225.7,13.91988001]
[1770015763246,14.85213849,2228.4,2225.9,13.91988001]
[1770015763247,15.07919266,2228.2,2225.9,13.91988001]
[1770015763447,0.48700578,2228.1,2226.1,13.91988001]
[1770015763647,0.1024,2228.0,2226.2,0.942]
[1770015763852,3.51134781,2228.0,2225.5,13.91988001]
[1770015764047,0.63101294,2227.9,2225.6,13.91988001]
[1770015764286,15.07919266,2227.6,2225.7,0.942]
[1770015764579,0.45026669,2227.5,2225.7,14.86188001]
[1770015764763,0.45026669,2227.5,2225.9,13.91988001]
[1770015765179,0.45026669,2227.5,2226.0,0.942]
[1770015765567,0.45026669,2227.5,2226.0,14.86188001]
[1770015765982,0.45026669,2227.5,2226.3,0.2335703]
[1770015766180,0.45026669,2227.5,2226.4,13.91988001]
[1770015766586,0.45026669,2227.5,2226.5,0.942]
[1770015767254,0.45026669,2227.5,2225.8,13.91988001]
[1770015767460,1.55294594,2227.4,2225.9,0.942]
[1770015767666,1.55294594,2227.4,2225.8,13.91988001]
[1770015767667,1.55294594,2227.4,2226.0,0.942]
[1770015767966,0.45026669,2227.5,2226.0,0.942]
[1770015768692,0.45026669,2227.5,2226.1,0.942]
[1770015769297,0.45026669,2227.5,2226.1,14.58823187]
[1770015769491,0.45026669,2227.5,2226.1,13.64623187]
[1770015769795,0.45026669,2227.5,2226.2,0.942]
[1770015769975,0.45026669,2227.5,2226.2,14.58823187]
[1770015770458,0.36436858,2227.5,2226.2,14.58823187]
[1770015770790,0.36436858,2227.5,2226.5,13.87980217]
[1770015771002,0.0011,2228.2,2226.5,13.87980217]
[1770015771302,15.3059867,2229.3,2226.5,13.87980217]
[1770015771303,0.52886996,2229.9,2228.2,13.64623187]
[1770015771460,0.23469684,2229.8,2228.5,13.64623187]
[1770015771661,15.07919266,2231.0,2228.6,13.87980217]
[1770015772091,15.07919266,2231.8,2229.0,13.64623187]
[1770015772393,15.07919266,2231.8,2229.3,0.2335703]
[1770015772597,1.50791927,2231.7,2229.4,0.942]
[1770015772994,1.50791927,2231.7,2229.5,13.64623187]
[1770015773165,1.50791927,2231.7,2229.2,14.5]
[1770015773166,1.50791927,2231.7,2229.6,13.64623187]
[1770015773368,0.1024,2231.9,2229.7,0.942]
[1770015773564,0.1024,2231.9,2229.8,14.5]
[1770015774180,0.1024,2231.9,2229.9,0.942]
[1770015774707,0.1024,2231.8,2230.0,0.942]
[1770015775008,0.1024,2231.8,2229.0,13.64623187]
[1770015775009,0.1024,2231.3,2230.1,0.942]
[1770015775163,0.1024,2231.3,2229.0,13.64623187]
[1770015775358,0.1024,2231.3,2229.1,0.942]
[1770015775764,15.07919266,2230.4,2228.4,13.64623187]
[1770015775993,1.61031927,2230.3,2228.5,0.942]
[1770015776204,1.61031927,2230.3,2228.1,11.39724824]
[1770015776367,1.61031927,2230.3,2228.6,0.942]
[1770015777061,1.61031927,2230.3,2228.2,14.5]
[1770015777265,1.50791927,2230.3,2228.3,14.58723187]
[1770015777525,1.65871119,2230.2,2228.3,14.58723187]
[1770015777683,15.07919266,2230.9,2228.9,0.2335703]
[1770015777883,28.08658752,2231.4,2229.2,13.64623187]
[1770015778086,15.07919266,2231.4,2229.3,29.08723187]
[1770015778283,0.1024,2231.3,2229.3,28.14623187]
[1770015778495,15.07919266,2230.9,2229.3,28.14623187]
[1770015778662,0.1024,2230.8,2229.4,0.941]
[1770015778867,15.07919266,2230.4,2228.2,13.64623187]
[1770015779170,0.1024,2230.3,2228.3,14.58723187]
[1770015779388,0.1024,2230.3,2228.4,14.5]
[1770015779586,0.1024,2230.3,2228.4,28.14623187]
[1770015779801,0.1024,2230.7,2228.5,14.58723187]
[1770015781078,13.00739486,2231.6,2229.4,13.64623187]
[1770015781295,0.1024,2231.5,2229.5,15.441]
[1770015781500,0.1024,2231.5,2229.6,0.941]
[1770015781881,13.00739486,2231.3,2228.8,13.64623187]
[1770015782082,13.00739486,2231.3,2229.2,0.2335703]
[1770015782083,2.80865875,2231.2,2229.2,0.2335703]
[1770015782315,0.1024,2231.1,2229.2,13.64623187]
[1770015782475,0.1024,2231.1,2229.3,0.941]
[1770015782679,0.0011,2230.0,2229.4,0.941]
[1770015783008,2.80865875,2231.2,2229.4,0.941]
[1770015783308,0.0011,2230.2,2229.5,14.5]
[1770015784126,0.0011,2230.2,2228.7,13.64623187]
[1770015784278,0.0011,2230.2,2228.8,0.941]
[1770015784480,0.0011,2230.2,2228.9,14.5]
[1770015784913,0.0011,2230.2,2229.0,13.87980217]
[1770015785211,0.0011,2230.2,2229.1,13.64623187]
[1770015785387,0.0011,2230.2,2229.2,0.941]
[1770015785585,0.0011,2230.2,2229.3,14.5]
[1770015786514,1.32412159,2231.8,2229.5,13.87980217]
[1770015786515,14.33151645,2231.8,2229.5,13.87980217]
[1770015786726,1.43315165,2231.7,2229.7,13.64623187]
[1770015787013,28.08658752,2232.3,2229.8,13.87980217]
[1770015787180,13.00739486,2231.7,2229.9,14.5]
[1770015787487,13.10979486,2231.6,2230.0,0.941]
[1770015787988,0.1024,2231.0,2228.8,12.65591276]
[1770015788315,0.1024,2231.0,2228.9,0.941]
[1770015788525,12.77953611,2230.8,2229.0,1.35969128]
[1770015788704,12.88193611,2230.9,2229.1,0.941]
[1770015789008,12.88193611,2230.9,2229.2,0.941]
[1770015789216,12.88193611,2230.9,2229.2,15.441]
[1770015789418,0.1024,2230.7,2229.2,15.441]
[1770015789911,0.1024,2230.0,2229.0,0.941]
[1770015790127,12.77953611,2230.5,2229.0,0.941]
[1770015790410,0.1024,2230.4,2229.0,0.941]
[1770015790608,2.89851288,2230.4,2229.0,0.941]
[1770015791111,16.49620563,2230.8,2229.0,0.941]
[1770015791312,0.1024,2230.7,2229.0,0.941]
[1770015791712,0.1024,2230.7,2229.1,14.5]
[1770015791919,15.07919266,2231.3,2229.2,12.88948306]
[1770015792101,12.77953611,2232.0,2229.5,12.88948306]
[1770015792306,15.07919266,2231.8,2229.7,12.65591276]
[1770015792618,1.27795361,2231.9,2229.9,12.65591276]
[1770015792787,0.1024,2232.3,2229.9,12.65591276]
[1770015793385,15.07919266,2232.4,2230.3,12.65591276]
[1770015793597,15.07919266,2232.4,2230.4,12.65591276]
[1770015793802,0.1024,2232.3,2230.4,12.65591276]
[1770015794122,15.07919266,2232.4,2230.5,12.88948306]
[1770015794413,12.77953611,2232.9,2230.5,12.88948306]
[1770015794414,1.50791927,2232.3,2230.7,12.65591276]
[1770015794582,1.50791927,2232.3,2230.6,15.78894831]
[1770015794583,15.07919266,2232.4,2230.8,0.941]
[1770015794982,0.1024,2232.3,2230.2,12.65591276]
[1770015795202,0.1024,2232.3,2230.9,0.941]
[1770015795605,0.1024,2232.0,2230.2,12.65591276]
[1770015795785,0.0011,2231.7,2230.3,2.20659128]
[1770015796122,0.1024,2231.5,2229.7,12.65591276]
[1770015796318,0.1024,2231.5,2229.8,0.941]
[1770015796918,0.0011,2231.7,2229.8,0.941]
[1770015796919,0.0011,2231.7,2229.8,13.59691276]
[1770015797102,0.1024,2231.4,2229.8,0.941]
[1770015797300,0.1024,2231.4,2229.3,12.65691276]
[1770015797532,1.62444528,2231.4,2229.5,12.65591276]
[1770015797929,1.52204528,2231.4,2229.5,12.65591276]
[1770015798100,1.52204528,2231.4,2229.4,2.20669128]
[1770015798101,0.1024,2231.6,2229.6,12.65591276]
[1770015798492,15.11805278,2231.4,2229.6,12.65591276]
[1770015798796,0.1024,2231.3,2229.7,0.941]
[1770015799191,0.1024,2231.3,2229.3,0.001]
[1770015799492,0.1024,2230.8,2229.3,0.001]
[1770015799839,1.62444528,2230.8,2229.3,0.001]
[1770015800126,12.88193611,2230.2,2228.2,0.001]
[1770015800313,12.88193611,2230.2,2228.3,0.941]
[1770015800314,0.1024,2229.7,2228.3,0.941]
[1770015800526,15.11805278,2229.3,2228.2,0.001]
[1770015800832,15.11805278,2229.3,2227.0,12.65591276]
[1770015800833,15.11805278,2228.8,2227.0,12.65591276]
[1770015801003,15.11805278,2228.8,2227.1,0.941]
[1770015801717,15.11805278,2228.2,2227.0,0.941]
[1770015801902,0.1024,2228.8,2226.4,12.65691276]
[1770015802106,15.11805278,2228.4,2227.1,0.941]
[1770015802419,0.1024,2228.3,2227.1,0.941]
[1770015802601,0.1024,2228.3,2226.9,0.941]
[1770015802798,2.91875653,2228.8,2226.6,12.65591276]
[1770015803014,15.11805278,2229.1,2226.8,12.65591276]
[1770015803335,1.51180528,2229.2,2227.4,12.65591276]
[1770015803633,1.51180528,2229.2,2227.5,0.941]
[1770015803634,15.11805278,2229.1,2227.5,0.941]
[1770015803814,1.51180528,2229.2,2227.5,0.941]
[1770015804327,1.51180528,2229.2,2227.5,12.65591276]
[1770015804525,1.51180528,2229.2,2227.6,1.48339436]
[1770015804935,12.88193611,2229.8,2227.6,0.54239436]
[1770015805093,12.77953611,2229.8,2227.7,0.941]
[1770015805297,0.1024,2229.7,2227.7,0.941]
[1770015806302,12.88193611,2229.7,2227.6,0.54239436]
[1770015806501,0.1024,2229.1,2227.7,0.941]
[1770015806822,0.1024,2228.6,2226.9,12.65591276]
[1770015807005,0.1024,2228.6,2227.4,0.941]
[1770015807199,0.1024,2228.6,2226.9,12.65591276]
[1770015807619,0.1024,2228.6,2227.0,0.941]
[1770015807928,1.62444528,2228.6,2227.0,2.30069128]
[1770015808729,1.62444528,2228.6,2227.2,0.001]
[1770015809933,1.52204528,2228.6,2227.2,0.001]
[1770015810130,15.11805278,2228.9,2227.2,0.001]
[1770015810435,0.1024,2228.3,2227.2,0.001]
[1770015810836,15.22045278,2228.3,2227.2,0.001]
[1770015811139,15.22045278,2228.3,2226.4,12.65691276]
[1770015811312,15.22045278,2228.3,2226.4,13.59791276]
[1770015811502,0.1024,2228.1,2226.4,13.59791276]
[1770015811902,1.52204528,2228.2,2226.4,13.59791276]
[1770015812102,0.1024,2228.4,2226.4,13.59791276]
[1770015813011,0.1024,2228.5,2226.4,12.65691276]
[1770015813210,0.1024,2228.0,2226.5,0.941]
[1770015813741,0.1024,2228.0,2226.4,12.65691276]
[1770015813904,0.1024,2228.0,2226.5,0.941]
[1770015814105,0.1024,2227.5,2226.4,0.001]
[1770015814405,0.1024,2227.5,2226.1,0.941]
[1770015815235,15.11805278,2227.9,2226.1,13.59691276]
[1770015815415,0.1024,2227.8,2226.1,13.59691276]
[1770015816432,0.1024,2227.3,2226.0,0.942]
[1770015816737,0.1024,2227.3,2225.6,12.65691276]
[1770015816911,15.11805278,2226.9,2225.6,0.001]
[1770015817113,0.1024,2227.3,2225.6,12.65691276]
[1770015817338,1.62444528,2227.3,2225.7,14.01580404]
[1770015817631,14.40398139,2227.3,2225.7,1.35989128]
[1770015817800,14.40398139,2227.3,2225.6,0.001]
[1770015818004,1.62444528,2227.3,2225.6,0.001]
[1770015818334,1.62444528,2227.3,2225.6,13.36854487]
[1770015818504,1.66400981,2227.8,2225.6,13.36854487]
[1770015818505,0.1024,2227.7,2225.6,13.36854487]
[1770015820545,0.1024,2227.7,2225.8,13.36754487]
[1770015820926,0.1024,2227.7,2225.9,14.30954487]
[1770015822147,0.1024,2228.1,2225.9,14.30954487]
[1770015822308,2.88690806,2228.1,2226.1,13.36754487]
[1770015823106,2.78450806,2228.1,2226.3,13.36754487]
[1770015824545,2.78450806,2228.1,2226.5,13.36754487]
[1770015825408,0.1024,2228.0,2226.5,13.36754487]
[1770015825610,0.1024,2228.0,2226.6,15.442]
[1770015825814,0.39109081,2228.0,2226.6,15.442]
[1770015826021,0.1024,2228.0,2226.6,15.442]
[1770015827524,0.1024,2228.0,2226.6,28.38279078]
[1770015827729,0.1024,2228.0,2226.7,12.94079078]
[1770015827969,2.13180532,2229.1,2226.7,12.94079078]
[1770015828260,15.44577655,2229.4,2226.6,15.442]
[1770015828261,0.96095235,2229.0,2227.1,12.94079078]
[1770015828454,27.99029564,2229.4,2227.5,12.94079078]
[1770015828455,15.11805278,2229.4,2227.5,12.94079078]
[1770015828626,15.11805278,2228.9,2227.2,2.23607908]
[1770015828821,0.1024,2228.8,2227.3,14.5]
[1770015829026,0.1024,2228.3,2226.7,0.53974521]
[1770015829246,0.1024,2228.3,2226.8,0.942]
[1770015829470,1.74342581,2228.3,2226.7,0.53974521]
[1770015829633,15.11805278,2227.9,2226.7,0.53974521]
[1770015829827,1.06621885,2227.8,2226.7,0.48974521]
[1770015830031,0.96381885,2227.7,2226.7,0.48974521]
[1770015830634,16.3078581,2227.9,2226.7,0.48974521]
[1770015830635,0.1024,2227.6,2226.7,0.48974521]
[1770015832630,0.1024,2227.8,2226.7,0.48974521]
[1770015832830,0.1024,2227.7,2226.7,0.48974521]
[1770015833042,2.7637674,2227.8,2226.7,0.48974521]
[1770015833043,0.1024,2227.5,2226.7,0.48974521]
[1770015834672,0.1024,2227.7,2226.7,0.48974521]
[1770015834846,0.1035,2227.5,2226.7,0.48974521]
[1770015835250,0.96602212,2227.4,2226.7,0.44807692]
[1770015835447,15.11805278,2227.2,2226.0,0.001]
[1770015835646,0.1024,2227.0,2226.0,0.001]
[1770015835845,0.1024,2226.8,2226.0,0.001]
[1770015836156,2.79821788,2227.1,2226.0,0.001]
[1770015836354,1.60841256,2227.1,2226.0,0.001]
[1770015837074,1.29220532,2227.4,2226.0,0.001]
[1770015837239,0.1024,2227.2,2226.0,0.001]
[1770015837878,0.9668832,2227.1,2226.0,0.001]
[1770015838078,1.18980532,2227.4,2226.0,12.94179078]
[1770015838286,0.0011,2227.5,2226.0,12.94179078]
[1770015838443,0.0011,2227.5,2226.1,1.29417908]
[1770015838650,0.0011,2227.5,2226.0,12.94179078]
[1770015838651,15.22045278,2227.3,2226.0,0.001]
[1770015838847,0.1024,2227.1,2226.0,0.001]
[1770015839583,0.1024,2227.4,2226.0,12.94179078]